bitfinex-derivatives/quotes_BTCF0:USTF0_20260107
["timestamp","ask_amount","ask_price","bid_price","bid_amount"]
[1767759339772,0.09168,92838.0,92825.0,0.09783054]
[1767759340071,0.09168,92839.0,92826.0,0.09783054]
[1767759340577,0.09168,92839.0,92832.0,0.010779]
[1767759340773,0.09168,92839.0,92815.0,0.09783054]
[1767759341074,0.09123277,92830.0,92815.0,0.09783054]
[1767759341791,7.7e-07,92830.0,92826.0,0.010779]
[1767759342074,0.01529681,92831.0,92826.0,0.010779]
[1767759343674,0.02541555,92828.0,92808.0,0.09783054]
[1767759343874,9.6e-07,92825.0,92808.0,0.08947054]
[1767759344173,9.6e-07,92825.0,92820.0,0.01078]
[1767759344381,0.09097424,92825.0,92820.0,0.01078]
[1767759345177,0.09097328,92825.0,92817.0,0.01078]
[1767759345967,0.0049797,92824.0,92817.0,0.01078]
[1767759346668,0.0049797,92824.0,92819.0,0.01078]
[1767759348081,0.0049797,92824.0,92816.0,0.01078]
[1767759349274,0.0049797,92824.0,92807.0,0.013201]
[1767759349477,0.01360485,92833.0,92812.0,0.09783054]
[1767759349868,0.00282585,92832.0,92812.0,0.09783054]
[1767759350371,0.00562765,92830.0,92812.0,0.09783054]
[1767759351278,0.00562765,92830.0,92819.0,0.01078]
[1767759353082,0.00562765,92830.0,92816.0,0.01078]
[1767759353276,0.00035818,92827.0,92816.0,0.01078]
[1767759354667,0.00035818,92827.0,92814.0,0.010781]
[1767759355280,0.00035818,92827.0,92816.0,0.01078]
[1767759355580,0.01113718,92827.0,92816.0,0.01078]
[1767759355772,0.00035818,92827.0,92816.0,0.01078]
[1767759356282,0.010779,92829.0,92810.0,0.15771422]
[1767759356579,0.10175228,92831.0,92817.0,0.01078]
[1767759356779,0.10175228,92831.0,92818.0,0.01078]
[1767759360584,0.010779,92829.0,92810.0,0.15771422]
[1767759361082,0.010779,92828.0,92815.0,0.01078]
[1767759361287,0.010779,92827.0,92815.0,0.01078]
[1767759361776,0.010779,92826.0,92813.0,0.010781]
[1767759362672,0.01078,92824.0,92813.0,0.010781]
[1767759363486,0.010779,92826.0,92815.0,0.010781]
[1767759363786,0.010779,92826.0,92813.0,0.010781]
[1767759365590,0.010781,92815.0,92802.0,0.010782]
[1767759365888,0.010781,92815.0,92787.0,0.010784]
[1767759365889,0.00572775,92812.0,92800.0,0.010782]
[1767759366090,0.00572775,92811.0,92800.0,0.010782]
[1767759367085,0.09019292,92813.0,92802.0,0.010782]
[1767759367276,0.10053068,92815.0,92804.0,0.010782]
[1767759368084,0.00800804,92804.0,92780.0,0.09954463]
[1767759368387,0.00800804,92803.0,92780.0,0.16868377]
[1767759368686,0.09164,92804.0,92787.0,0.07156677]
[1767759368881,0.09164,92804.0,92788.0,0.06913914]
[1767759369094,0.09164,92804.0,92792.0,0.010783]
[1767759369580,0.09164,92804.0,92789.0,0.010784]
[1767759369775,0.01510268,92803.0,92789.0,0.010784]
[1767759370274,0.0137192,92802.0,92789.0,0.010784]
[1767759370675,0.0137192,92800.0,92777.0,0.09650429]
[1767759370874,0.0137192,92800.0,92763.0,0.85566463]
[1767759370875,0.09019292,92796.0,92769.0,0.06913914]
[1767759371075,0.06615769,92796.0,92770.0,0.06913914]
[1767759371280,0.06615769,92794.0,92781.0,0.010785]
[1767759371480,0.09164,92793.0,92781.0,0.010785]
[1767759371877,0.09164,92793.0,92778.0,0.010785]
[1767759373288,0.09164,92793.0,92778.0,0.17946877]
[1767759373584,0.16858069,92793.0,92778.0,0.010785]
[1767759373786,0.010783,92791.0,92774.0,0.010785]
[1767759374089,0.06615769,92790.0,92774.0,0.010785]
[1767759375288,0.06615769,92790.0,92776.0,0.010785]
[1767759377301,0.06615769,92801.0,92780.0,0.16868377]
[1767759377587,0.09168,92810.0,92795.0,0.010783]
[1767759377978,0.15635061,92813.0,92793.0,0.16868377]
[1767759378182,0.09168,92817.0,92802.0,0.010782]
[1767759378491,0.09168,92817.0,92804.0,0.010782]
[1767759378882,0.09168,92817.0,92801.0,0.010782]
[1767759379690,0.09168,92817.0,92803.0,0.010782]
[1767759379890,7.4e-07,92819.0,92814.0,0.010781]
[1767759380091,0.09168,92829.0,92816.0,0.01078]
[1767759380492,0.49168,92829.0,92816.0,0.01078]
[1767759381096,0.49168,92829.0,92818.0,0.01078]
[1767759381297,0.09168,92829.0,92818.0,0.01078]
[1767759381996,0.06301051,92842.0,92820.0,0.06913914]
[1767759382181,0.09168,92841.0,92826.0,0.010779]
[1767759382385,0.15320343,92840.0,92826.0,0.010779]
[1767759382585,0.09168,92841.0,92826.0,0.010779]
[1767759382586,0.06301051,92838.0,92826.0,0.010779]
[1767759382782,0.06301051,92838.0,92828.0,0.010779]
[1767759384785,0.06301051,92838.0,92828.0,0.410779]
[1767759385096,0.06301051,92838.0,92828.0,0.4]
[1767759385290,0.15320343,92838.0,92828.0,0.4]
[1767759385510,0.06615769,92837.0,92828.0,0.4]
[1767759387199,0.61212,92851.0,92828.0,0.4]
[1767759387200,0.06615769,92843.0,92828.0,0.4]
[1767759387400,0.102458,92842.0,92822.0,0.06913914]
[1767759387699,0.16861569,92842.0,92826.0,0.010779]
[1767759387889,0.06615769,92841.0,92826.0,0.010779]
[1767759389998,0.010778,92840.0,92825.0,0.010779]
[1767759390301,0.07693569,92840.0,92825.0,0.010779]
[1767759391503,0.0695077,92839.0,92825.0,0.010779]
[1767759391809,0.0695077,92837.0,92824.0,0.010779]
[1767759394000,0.0802857,92837.0,92824.0,0.010779]
[1767759394197,0.09168,92842.0,92822.0,0.13194175]
[1767759394198,0.09355873,92833.0,92822.0,0.13194175]
[1767759394400,0.089219,92826.0,92801.0,0.0117641]
[1767759394590,0.089219,92824.0,92801.0,0.0117641]
[1767759394794,0.099999,92824.0,92801.0,0.0009821]
[1767759394991,0.01078,92822.0,92801.0,0.0009821]
[1767759395303,0.01671392,92821.0,92809.0,0.010781]
[1767759395512,0.10242,92825.0,92789.0,0.00215544]
[1767759395513,0.00593292,92814.0,92789.0,0.00215544]
[1767759395697,0.00593292,92808.0,92785.0,0.09164]
[1767759396004,0.00593292,92808.0,92794.0,0.010783]
[1767759396202,0.00593292,92808.0,92796.0,0.010783]
[1767759396589,0.00593292,92808.0,92785.0,0.09164]
[1767759396590,0.09640793,92813.0,92798.0,0.010783]
[1767759396789,0.010781,92811.0,92795.0,0.010783]
[1767759396989,0.010781,92809.0,92795.0,0.010783]
[1767759397791,0.010781,92809.0,92791.0,0.1009841]
[1767759398099,0.010782,92807.0,92791.0,0.1009841]
[1767759399403,0.010782,92807.0,92793.0,0.010783]
[1767759401322,0.010782,92805.0,92791.0,0.0902011]
[1767759404803,0.010782,92805.0,92791.0,0.1562421]
[1767759405011,0.010781,92808.0,92793.0,0.0902011]
[1767759405309,0.010781,92808.0,92793.0,0.1562421]
[1767759405513,0.010781,92808.0,92794.0,0.0902011]
[1767759408698,0.010782,92806.0,92794.0,0.0902011]
[1767759408897,0.010782,92806.0,92793.0,0.066041]
[1767759409108,0.00758784,92799.0,92776.0,0.0562421]
[1767759409312,0.010784,92789.0,92772.0,0.010785]
[1767759409811,0.010784,92789.0,92771.0,0.09168]
[1767759410013,0.010784,92789.0,92776.0,0.010785]
[1767759414412,0.010784,92787.0,92775.0,0.0902011]
[1767759414604,0.010784,92787.0,92773.0,0.0590871]
[1767759415010,0.010784,92789.0,92775.0,0.010785]
[1767759416605,0.010784,92789.0,92775.0,0.076826]
[1767759416806,0.010784,92789.0,92776.0,0.076826]
[1767759419915,0.12555477,92789.0,92763.0,0.09507616]
[1767759420113,0.12555477,92789.0,92769.0,0.08486398]
[1767759420114,0.010784,92783.0,92769.0,0.08486398]
[1767759420416,0.010784,92784.0,92776.0,0.07407798]
[1767759420720,0.0403229,92800.0,92774.0,0.07407798]
[1767759420721,0.010783,92794.0,92785.0,0.07407798]
[1767759420919,0.010784,92790.0,92785.0,0.07407798]
[1767759421110,0.010784,92788.0,92785.0,9.8e-07]
[1767759421416,0.010784,92783.0,92775.0,0.09507616]
[1767759421615,0.010784,92783.0,92770.0,0.09137235]
[1767759421616,0.010784,92783.0,92770.0,0.0928874]
[1767759422413,0.010785,92778.0,92763.0,0.0928874]
[1767759422610,0.010784,92788.0,92764.0,0.1845674]
[1767759422611,0.010785,92774.0,92764.0,0.1845674]
[1767759422819,0.010785,92777.0,92764.0,0.1845674]
[1767759423122,0.010785,92778.0,92765.0,0.0928874]
[1767759423318,0.010785,92778.0,92766.0,0.07513187]
[1767759424217,0.09137235,92776.0,92756.0,0.010787]
[1767759424418,0.09137235,92776.0,92750.0,0.07513187]
[1767759424419,0.010786,92769.0,92751.0,0.07513187]
[1767759424612,0.010786,92769.0,92752.0,0.0928874]
[1767759425921,0.010786,92772.0,92755.0,0.1036744]
[1767759426226,0.010786,92770.0,92755.0,0.1036744]
[1767759426411,0.010786,92770.0,92755.0,0.17880627]
[1767759427322,0.010786,92768.0,92755.0,0.17880627]
[1767759427925,0.010786,92771.0,92755.0,0.17880627]
[1767759428422,0.010786,92771.0,92756.0,0.07513187]
[1767759428624,0.010786,92771.0,92757.0,0.010787]
[1767759429216,0.010786,92771.0,92757.0,0.08591887]
[1767759430538,0.010786,92771.0,92757.0,0.17880627]
[1767759430711,0.010786,92771.0,92758.0,0.07513187]
[1767759431527,0.010786,92769.0,92758.0,0.07513187]
[1767759432028,0.010786,92767.0,92758.0,0.07513187]
[1767759433131,0.1668511,92777.0,92744.0,0.07513187]
[1767759433132,0.0751711,92765.0,92744.0,0.07513187]
[1767759433326,0.0751711,92765.0,92740.0,0.09168]
[1767759433327,0.010788,92754.0,92740.0,0.09168]
[1767759433523,0.010788,92754.0,92739.0,0.1953564]
[1767759433721,0.010787,92757.0,92739.0,0.1953564]
[1767759433922,0.010787,92757.0,92741.0,0.010789]
[1767759434126,0.010787,92757.0,92741.0,0.1036764]
[1767759434327,0.00010795,92756.0,92741.0,0.1036764]
[1767759434848,0.00010795,92756.0,92743.0,0.010789]
[1767759435128,0.00010795,92756.0,92743.0,0.1036764]
[1767759435320,0.00010795,92756.0,92744.0,0.07513187]
[1767759435523,0.00010795,92756.0,92744.0,0.16801927]
[1767759436223,0.00010795,92756.0,92740.0,0.09137235]
[1767759436224,0.09137235,92754.0,92738.0,0.0928874]
[1767759436440,0.16695905,92756.0,92734.0,0.01079]
[1767759436729,0.010788,92751.0,92731.0,0.01079]
[1767759437115,0.010788,92749.0,92731.0,0.01079]
[1767759437313,0.010788,92749.0,92733.0,0.01079]
[1767759438132,0.010789,92747.0,92730.0,0.01079]
[1767759438334,0.010789,92747.0,92730.0,0.10216235]
[1767759438623,0.00010795,92756.0,92735.0,0.07513187]
[1767759438624,0.010789,92745.0,92735.0,0.07513187]
[1767759439223,0.26613959,92750.0,92734.0,0.07513187]
[1767759439431,0.010789,92739.0,92734.0,0.07513187]
[1767759439632,0.010789,92739.0,92730.0,0.07513187]
[1767759439931,0.010789,92739.0,92731.0,0.07513187]
[1767759440114,0.010789,92742.0,92733.0,0.07513187]
[1767759440729,0.00010795,92756.0,92738.0,0.16801927]
[1767759441027,0.09172,92755.0,92741.0,0.07513187]
[1767759441528,0.00010795,92756.0,92735.0,0.06735927]
[1767759441529,0.010788,92749.0,92735.0,0.06735927]
[1767759441733,0.09970409,92756.0,92739.0,0.09137235]
[1767759441734,0.010788,92755.0,92739.0,0.09137235]
[1767759442037,0.09172,92754.0,92739.0,0.09137235]
[1767759442231,0.09172,92754.0,92739.0,0.09029235]
[1767759442432,0.09172,92754.0,92739.0,0.10108135]
[1767759442734,0.010788,92753.0,92739.0,0.010789]
[1767759442932,0.010788,92753.0,92740.0,0.09137235]
[1767759443231,0.01089595,92756.0,92740.0,0.09137235]
[1767759443431,0.09172,92755.0,92741.0,0.07513187]
[1767759443730,0.17476724,92752.0,92737.0,0.01079]
[1767759443932,0.09959614,92752.0,92737.0,0.01079]
[1767759444253,0.010788,92754.0,92737.0,0.01079]
[1767759444629,0.010788,92754.0,92738.0,0.16801927]
[1767759444828,0.010788,92754.0,92740.0,0.09137235]
[1767759445028,0.09172,92755.0,92744.0,0.07513187]
[1767759445229,0.010788,92754.0,92740.0,0.16650422]
[1767759445546,0.010788,92752.0,92737.0,0.0928874]
[1767759445835,0.010788,92752.0,92736.0,0.07513187]
[1767759446030,0.010788,92752.0,92738.0,0.07513187]
[1767759446238,0.102508,92755.0,92739.0,0.010789]
[1767759446531,0.00010795,92756.0,92741.0,0.08592087]
[1767759446925,0.09172,92755.0,92741.0,0.08592087]
[1767759448034,0.09959614,92769.0,92742.0,0.16801927]
[1767759448236,0.010786,92772.0,92757.0,0.07513187]
[1767759448446,0.010786,92772.0,92758.0,0.07513187]
[1767759448623,0.17476724,92780.0,92761.0,0.07513187]
[1767759448823,0.17476724,92780.0,92757.0,0.0928874]
[1767759448824,0.010786,92773.0,92759.0,0.07513187]
[1767759449028,0.17476724,92777.0,92757.0,0.0928874]
[1767759449327,0.010786,92772.0,92757.0,0.0928874]
[1767759449935,0.010786,92772.0,92757.0,0.16801927]
[1767759450137,0.010785,92775.0,92759.0,0.010787]
[1767759450327,0.09959614,92777.0,92759.0,0.08591887]
[1767759450527,0.010785,92776.0,92759.0,0.08591887]
[1767759451733,0.010785,92780.0,92764.0,0.06946809]
[1767759451939,0.102505,92781.0,92766.0,0.06946809]
[1767759452433,0.09172,92781.0,92766.0,0.06946809]
[1767759452642,0.09172,92781.0,92768.0,0.06946809]
[1767759453438,0.09172,92781.0,92768.0,0.08025409]
[1767759454939,0.010785,92780.0,92767.0,0.09307333]
[1767759455142,0.010785,92780.0,92765.0,0.010786]
[1767759455525,0.09598728,92775.0,92741.0,0.06946809]
[1767759455724,0.09137235,92760.0,92741.0,0.06946809]
[1767759455935,0.09137235,92760.0,92742.0,0.06946809]
[1767759456142,0.09137235,92751.0,92732.0,0.09172]
[1767759456340,0.010788,92752.0,92732.0,0.09172]
[1767759456735,0.10677528,92755.0,92733.0,0.06946809]
[1767759456942,0.010788,92753.0,92733.0,0.06946809]
[1767759457429,0.09598728,92750.0,92729.0,0.00215683]
[1767759457634,0.010789,92745.0,92729.0,0.00215683]
[1767759457834,0.010788,92748.0,92731.0,0.16254142]
[1767759458044,0.010789,92746.0,92730.0,0.16084044]
[1767759458342,0.010789,92744.0,92730.0,0.16084044]
[1767759458542,0.010789,92740.0,92730.0,0.06946809]
[1767759458727,0.01079,92738.0,92730.0,0.06946809]
[1767759459643,0.01079,92738.0,92729.0,0.00215683]
[1767759461444,0.010789,92741.0,92729.0,0.00215683]
[1767759461645,0.010789,92741.0,92729.0,0.07162492]
[1767759462242,0.010789,92744.0,92730.0,0.16084044]
[1767759462441,0.09137235,92760.0,92730.0,0.16084044]
[1767759462442,0.26081646,92760.0,92737.0,0.09307333]
[1767759462746,0.010788,92749.0,92737.0,0.09307333]
[1767759462939,0.09172,92748.0,92733.0,0.06946809]
[1767759464242,0.010788,92749.0,92729.0,0.00215683]
[1767759464243,0.09172,92756.0,92742.0,0.09307333]
[1767759464445,0.09172,92757.0,92744.0,0.06946809]
[1767759464843,0.09172,92757.0,92743.0,0.16254142]
[1767759465041,0.09172,92757.0,92745.0,0.06946809]
[1767759465945,0.09172,92764.0,92750.0,0.17332942]
[1767759466249,0.09172,92764.0,92752.0,0.06946809]
[1767759466747,0.09172,92764.0,92753.0,0.06946809]
[1767759466948,0.09172,92764.0,92751.0,0.09307333]
[1767759467742,0.09172,92764.0,92747.0,0.010788]
[1767759467942,0.07345683,92766.0,92747.0,0.010788]
[1767759468245,0.16944411,92766.0,92747.0,0.010788]
[1767759468448,0.16944411,92766.0,92745.0,0.08703469]
[1767759468640,0.09598728,92766.0,92752.0,0.010788]
[1767759468837,0.09598728,92766.0,92755.0,0.010788]
[1767759469950,0.09598728,92773.0,92754.0,0.06946809]
[1767759470153,0.18770728,92772.0,92758.0,0.010787]
[1767759470448,0.18770728,92772.0,92755.0,0.010788]
[1767759470758,0.09172,92772.0,92759.0,0.010787]
[1767759471753,0.09172,92772.0,92756.0,0.010787]
[1767759471953,0.18770728,92772.0,92756.0,0.010787]
[1767759472157,0.010786,92771.0,92756.0,0.010787]
[1767759474055,0.18770728,92772.0,92738.0,0.06946809]
[1767759474056,0.07345683,92765.0,92738.0,0.06946809]
[1767759474251,0.07345683,92756.0,92734.0,0.06946809]
[1767759474454,0.09598728,92757.0,92733.0,0.0816876]
[1767759474455,0.09598728,92754.0,92733.0,0.0816876]
[1767759474660,0.09598728,92754.0,92738.0,0.010789]
[1767759475158,0.010788,92753.0,92738.0,0.010789]
[1767759475547,0.010789,92743.0,92729.0,0.00215683]
[1767759475856,0.010789,92743.0,92721.0,0.09307333]
[1767759476449,0.010789,92741.0,92725.0,0.010791]
[1767759476954,0.010789,92741.0,92722.0,0.010791]
[1767759477148,0.01079,92739.0,92722.0,0.010791]
[1767759477655,0.01079,92735.0,92719.0,0.010792]
[1767759477858,0.16944411,92739.0,92718.0,0.010792]
[1767759478059,0.18023411,92734.0,92716.0,0.010792]
[1767759478355,0.09598728,92733.0,92710.0,0.18309235]
[1767759478558,0.01079,92735.0,92718.0,0.010792]
[1767759478763,0.09172,92742.0,92723.0,0.02933704]
[1767759479256,0.472227,92758.0,92723.0,0.02933704]
[1767759479257,0.09598728,92755.0,92727.0,0.03258848]
[1767759479449,0.09598728,92755.0,92730.0,0.03258848]
[1767759479450,0.010789,92745.0,92730.0,0.03258848]
[1767759480247,0.010788,92748.0,92730.0,0.03258848]
[1767759480447,0.010788,92753.0,92734.0,0.03128268]
[1767759480657,0.010788,92753.0,92736.0,0.03128268]
[1767759481050,0.010788,92751.0,92736.0,0.03128268]
[1767759481261,0.010787,92760.0,92745.0,0.03049551]
[1767759481660,0.09172,92761.0,92749.0,0.010788]
[1767759481858,0.09172,92761.0,92747.0,0.03151574]
[1767759482064,0.09172,92761.0,92743.0,0.010789]
[1767759482258,0.10819882,92755.0,92738.0,0.010789]
[1767759482452,0.10819882,92755.0,92732.0,0.0307278]
[1767759482453,0.09741082,92755.0,92732.0,0.0307278]
[1767759482659,0.102507,92761.0,92740.0,0.0307278]
[1767759482864,0.102507,92761.0,92742.0,0.0307278]
[1767759483073,0.010787,92757.0,92741.0,0.010789]
[1767759483263,0.09741082,92762.0,92741.0,0.02994248]
[1767759483264,0.09172,92760.0,92741.0,0.02994248]
[1767759483559,0.09172,92760.0,92746.0,0.010789]
[1767759483763,0.09172,92760.0,92748.0,0.010788]
[1767759484165,0.00215614,92759.0,92748.0,0.010788]
[1767759484666,0.09741082,92769.0,92743.0,0.13010569]
[1767759484854,0.09172,92768.0,92748.0,0.02962063]
[1767759485054,0.09172,92768.0,92755.0,0.010788]
[1767759486262,0.19991582,92776.0,92753.0,0.02881416]
[1767759486470,0.010785,92774.0,92756.0,0.010787]
[1767759486759,0.0690647,92769.0,92758.0,0.010787]
[1767759486966,0.09434356,92775.0,92758.0,0.010787]
[1767759487866,0.09434356,92775.0,92760.0,0.010787]
[1767759488058,0.10512856,92775.0,92754.0,0.02803521]
[1767759488266,0.10512856,92775.0,92750.0,0.09289369]
[1767759489271,0.09434356,92774.0,92758.0,0.010787]
[1767759491167,0.09434356,92774.0,92760.0,0.010787]
[1767759494274,0.09434356,92774.0,92762.0,0.010787]
[1767759494473,0.09434356,92774.0,92759.0,0.010787]
[1767759494778,0.09434356,92757.0,92741.0,0.09172]
[1767759494965,0.09434356,92757.0,92739.0,0.09172]
[1767759495477,0.09434356,92757.0,92741.0,0.010789]
[1767759495777,0.10513056,92757.0,92741.0,0.010789]
[1767759496277,0.09434356,92757.0,92739.0,0.09172]
[1767759497072,0.010786,92765.0,92746.0,0.00668638]
[1767759497271,0.102506,92765.0,92747.0,0.00668638]
[1767759497779,0.010787,92763.0,92747.0,0.00668638]
[1767759497963,0.010787,92763.0,92748.0,0.010788]
[1767759498163,0.10512956,92769.0,92749.0,0.00590431]
[1767759498366,0.09172,92774.0,92764.0,0.010787]
[1767759498566,0.09172,92774.0,92758.0,0.00590431]
[1767759498777,0.102505,92780.0,92759.0,0.00590431]
[1767759498973,0.09434356,92782.0,92760.0,0.09804124]
[1767759499181,0.09172,92787.0,92772.0,0.010786]
[1767759499477,0.102504,92787.0,92772.0,0.010786]
[1767759499670,0.19684756,92787.0,92772.0,0.010786]
[1767759499869,0.19684756,92787.0,92769.0,0.010786]
[1767759500080,0.18606356,92787.0,92773.0,0.010785]
[1767759500281,0.18606356,92787.0,92765.0,0.010786]
[1767759500481,0.09434356,92787.0,92767.0,0.010786]
[1767759500786,0.09434356,92787.0,92779.0,0.010785]
[1767759501383,0.09434356,92787.0,92781.0,0.010785]
[1767759502085,0.09434356,92787.0,92778.0,0.010785]
[1767759502878,0.00215544,92789.0,92770.0,0.00323477]
[1767759503186,0.00215544,92789.0,92781.0,0.010784]
[1767759503386,0.00215544,92789.0,92770.0,0.00323477]
[1767759503387,0.00215544,92789.0,92783.0,0.010784]
[1767759503789,4.4e-07,92789.0,92785.0,0.010784]
[1767759503984,0.07164646,92796.0,92785.0,0.010784]
[1767759504578,0.09172,92797.0,92785.0,0.010784]
[1767759504779,0.102503,92797.0,92780.0,0.010785]
[1767759505180,0.09172,92797.0,92782.0,0.010784]
[1767759507603,0.16336646,92797.0,92782.0,0.010784]
[1767759508008,0.16336646,92797.0,92784.0,0.010784]
[1767759508900,0.07164646,92797.0,92780.0,0.010785]
[1767759509100,0.16599002,92799.0,92777.0,0.10600951]
[1767759509295,0.16599002,92799.0,92787.0,0.010784]
[1767759510600,0.16599002,92799.0,92789.0,0.010784]
[1767759511316,0.16599002,92798.0,92786.0,0.010784]
[1767759511510,0.16599002,92798.0,92772.0,0.010786]
[1767759511511,0.06924576,92793.0,92783.0,0.010784]
[1767759511703,0.06924576,92793.0,92784.0,0.010784]
[1767759511903,0.06924576,92793.0,92785.0,0.010784]
[1767759512614,0.06924576,92793.0,92775.0,0.010785]
[1767759512810,0.06924576,92793.0,92776.0,0.010785]
[1767759513505,0.09276755,92794.0,92777.0,0.010785]
[1767759513710,0.06924576,92797.0,92778.0,0.010785]
[1767759514303,0.09276755,92800.0,92779.0,0.099202]
[1767759514508,0.06924576,92801.0,92792.0,0.010783]
[1767759515411,0.09276755,92806.0,92800.0,0.010782]
[1767759515915,0.09276755,92806.0,92797.0,0.010783]
[1767759516306,0.06924576,92809.0,92788.0,0.00025318]
[1767759516512,0.06924576,92813.0,92798.0,0.010783]
[1767759517620,0.06924576,92813.0,92794.0,0.010783]
[1767759517918,0.06924576,92812.0,92796.0,0.010783]
[1767759518218,0.16201331,92811.0,92792.0,0.010783]
[1767759518421,0.06924576,92807.0,92791.0,0.102463]
[1767759518622,0.06924576,92807.0,92791.0,0.18892836]
[1767759520923,0.09276755,92808.0,92791.0,0.18892836]
[1767759521923,0.16201331,92808.0,92791.0,0.18892836]
[1767759523325,0.16201331,92808.0,92793.0,0.010783]
[1767759524331,0.010781,92811.0,92795.0,0.010783]
[1767759524531,0.06924576,92813.0,92799.0,0.010782]
[1767759525323,0.06924576,92812.0,92799.0,0.010782]
[1767759525827,0.010781,92814.0,92798.0,0.010783]
[1767759526129,0.06924576,92815.0,92798.0,0.010783]
[1767759526328,0.16201331,92815.0,92798.0,0.010783]
[1767759526524,0.06924576,92814.0,92798.0,0.010783]
[1767759526728,0.010781,92811.0,92795.0,0.010783]
[1767759528222,0.06924576,92813.0,92791.0,0.27734736]
[1767759529129,0.06924576,92812.0,92791.0,0.27734736]
[1767759529628,0.06924576,92812.0,92795.0,0.010783]
[1767759529829,0.06924576,92812.0,92791.0,0.27734736]
[1767759529830,0.06924576,92812.0,92798.0,0.010783]
[1767759531429,0.09276755,92814.0,92794.0,0.109985]
[1767759531724,0.06924576,92818.0,92808.0,0.010781]
[1767759531935,0.09492229,92819.0,92808.0,0.010781]
[1767759532114,0.16416805,92819.0,92808.0,0.010781]
[1767759532429,0.16416805,92819.0,92805.0,0.010782]
[1767759532627,0.06924576,92818.0,92805.0,0.010782]
[1767759532827,0.00215474,92819.0,92800.0,0.09168]
[1767759533128,0.00215474,92819.0,92801.0,0.109984]
[1767759533931,0.06924576,92828.0,92813.0,0.010781]
[1767759534130,0.06924576,92826.0,92809.0,0.010781]
[1767759534322,0.06924576,92825.0,92809.0,0.010781]
[1767759536433,0.16201331,92825.0,92809.0,0.010781]
[1767759536626,0.06924576,92824.0,92809.0,0.010781]
[1767759538333,0.06924576,92823.0,92809.0,0.010781]
[1767759539231,0.06924576,92823.0,92812.0,0.010781]
[1767759540532,0.06068245,92821.0,92812.0,0.010781]
[1767759540728,0.06068245,92819.0,92810.0,0.0912868]
[1767759540928,0.06068245,92819.0,92809.0,0.010781]
[1767759541631,0.06068245,92819.0,92809.0,0.1020678]
[1767759543034,0.06068245,92819.0,92800.0,0.09168]
[1767759543236,0.15779997,92805.0,92801.0,0.09168]
[1767759543540,0.06507708,92799.0,92791.0,0.00465179]
[1767759543838,0.09272289,92800.0,92787.0,0.010784]
[1767759544136,0.09272289,92800.0,92787.0,0.102464]
[1767759544838,0.09272289,92800.0,92787.0,0.09168]
[1767759545232,0.0912868,92810.0,92787.0,0.09168]
[1767759545233,0.0912868,92810.0,92787.0,0.17670003]
[1767759545828,0.06507708,92803.0,92787.0,0.17670003]
[1767759547241,0.15779997,92803.0,92787.0,0.17670003]
[1767759547440,0.06507708,92801.0,92787.0,0.17670003]
[1767759547643,0.07585908,92800.0,92787.0,0.17670003]
[1767759547941,0.06507708,92800.0,92787.0,0.17670003]
[1767759549841,0.010783,92793.0,92775.0,0.15047958]
[1767759550140,0.07586008,92796.0,92776.0,0.18287892]
[1767759550347,0.07586008,92796.0,92776.0,0.26987584]
[1767759550926,0.06507708,92796.0,92781.0,0.010785]
[1767759551238,0.16858297,92799.0,92781.0,0.010785]
[1767759551432,0.16858297,92799.0,92783.0,0.010784]
[1767759554251,0.06507708,92794.0,92781.0,0.09168]
[1767759554438,0.010783,92795.0,92781.0,0.09168]
[1767759554837,0.010783,92793.0,92781.0,0.09168]
[1767759556237,0.010783,92791.0,92781.0,0.09168]
[1767759556432,0.06507708,92790.0,92776.0,0.08699692]
[1767759556637,0.06507708,92790.0,92776.0,0.010785]
[1767759556840,0.06507708,92790.0,92778.0,0.010785]
[1767759557238,0.06507708,92790.0,92775.0,0.010785]
[1767759557544,0.06507708,92790.0,92777.0,0.010785]
[1767759558546,0.06507708,92789.0,92779.0,0.010785]
[1767759560248,0.06507708,92789.0,92777.0,0.010785]
[1767759560643,0.06507708,92789.0,92774.0,0.09673538]
[1767759560850,0.15779997,92788.0,92774.0,0.09673538]
[1767759561070,0.06507708,92787.0,92774.0,0.09673538]
[1767759561350,0.06507708,92787.0,92773.0,0.16678978]
[1767759561652,0.06507708,92785.0,92773.0,0.16570978]
[1767759561861,0.06507708,92785.0,92773.0,0.17649478]
[1767759562052,0.06507708,92785.0,92773.0,0.09122038]
[1767759562348,0.06507708,92785.0,92773.0,0.08043538]
[1767759562349,0.0001039,92784.0,92773.0,0.08043538]
[1767759562547,0.06507708,92777.0,92765.0,0.010786]
[1767759562752,0.06507708,92776.0,92757.0,0.09119892]
[1767759562957,0.06507708,92776.0,92760.0,0.010787]
[1767759563653,0.06507708,92776.0,92762.0,0.010787]
[1767759564760,0.06507708,92776.0,92759.0,0.010787]
[1767759567849,0.06507708,92774.0,92759.0,0.010787]
[1767759568049,0.06507708,92774.0,92756.0,0.102467]
[1767759568656,0.06507708,92774.0,92756.0,0.18857671]
[1767759569461,0.07586308,92773.0,92756.0,0.18857671]
[1767759571056,0.06507708,92773.0,92758.0,0.010787]
[1767759574660,0.06507708,92773.0,92759.0,0.010787]
[1767759576751,0.06507708,92773.0,92760.0,0.010787]
[1767759580661,0.06507708,92773.0,92756.0,0.17778971]
[1767759580862,0.0607979,92777.0,92756.0,0.33474998]
[1767759581055,0.0607979,92777.0,92760.0,0.0912868]
[1767759581256,0.010785,92779.0,92765.0,0.010786]
[1767759581566,0.0607979,92779.0,92767.0,0.010786]
[1767759581764,0.0607979,92779.0,92761.0,0.09475546]
[1767759581765,0.0715829,92779.0,92765.0,0.010786]
[1767759582168,0.0607979,92779.0,92765.0,0.010786]
[1767759582967,0.0715829,92779.0,92765.0,0.010786]
[1767759583369,0.0607979,92779.0,92765.0,0.010786]
[1767759583867,0.0607979,92779.0,92766.0,0.010786]
[1767759584168,0.0607979,92778.0,92766.0,0.010786]
[1767759586269,0.0607979,92777.0,92763.0,0.010787]
[1767759586568,0.0607979,92777.0,92764.0,0.010786]
[1767759586963,0.0607979,92777.0,92765.0,0.010786]
[1767759591571,0.0607979,92777.0,92767.0,0.010786]
[1767759592171,0.0607979,92777.0,92757.0,0.15696027]
[1767759592376,0.0912868,92780.0,92760.0,0.25903407]
[1767759592577,0.0912868,92780.0,92771.0,0.010786]
[1767759592869,0.27698411,92780.0,92771.0,0.010786]
[1767759593478,0.27698411,92780.0,92772.0,0.010785]